bitfinex/quotes_BTCUSD_20250403
["timestamp","ask_amount","ask_price","bid_price","bid_amount"]
[1743699870875,0.244166,81912.0,81905.0,0.061909]
[1743699871119,0.00011834,81910.0,81907.0,0.244176]
[1743699871290,0.00011834,81910.0,81908.0,0.244173]
[1743699871491,0.00011834,81910.0,81905.0,0.061909]
[1743699871492,0.244173,81909.0,81905.0,0.0497]
[1743699871698,0.244185,81905.0,81898.0,0.401135]
[1743699871891,0.244191,81903.0,81899.0,0.244203]
[1743699872231,0.244191,81903.0,81900.0,0.244197]
[1743699872520,0.244191,81903.0,81899.0,0.256412]
[1743699873063,0.244188,81904.0,81901.0,0.244194]
[1743699873174,0.244188,81904.0,81900.0,0.244199]
[1743699873382,0.244192,81903.0,81900.0,0.244199]
[1743699873793,0.244186,81905.0,81900.0,0.256409]
[1743699873994,0.244186,81905.0,81898.0,0.01221]
[1743699874248,0.244194,81903.0,81899.0,0.244203]
[1743699874455,0.244195,81902.0,81898.0,0.244203]
[1743699874867,0.244191,81904.0,81898.0,0.256413]
[1743699875181,0.244191,81904.0,81900.0,0.244197]
[1743699875333,0.244192,81903.0,81900.0,0.244197]
[1743699875529,0.244191,81904.0,81901.0,0.244196]
[1743699875933,0.244191,81903.0,81900.0,0.244197]
[1743699876153,0.244191,81904.0,81900.0,0.244197]
[1743699876352,0.244192,81903.0,81899.0,0.244201]
[1743699876553,0.244185,81906.0,81900.0,0.01221]
[1743699876764,0.244186,81905.0,81898.0,0.256414]
[1743699876924,0.244186,81905.0,81898.0,0.01221]
[1743699877124,0.244186,81905.0,81900.0,0.244197]
[1743699877328,0.244197,81901.0,81897.0,0.0456]
[1743699877535,0.244185,81905.0,81901.0,0.244195]
[1743699877777,0.244187,81906.0,81902.0,0.244191]
[1743699878160,0.244176,81908.0,81904.0,0.244187]
[1743699878497,0.244182,81906.0,81903.0,0.24419]
[1743699878804,0.244215,81895.0,81890.0,0.0452]
[1743699878952,0.244218,81894.0,81890.0,0.0452]
[1743699879155,0.244227,81891.0,81890.0,0.0452]
[1743699879596,0.244224,81892.0,81890.0,0.0452]
[1743699880012,0.244227,81891.0,81890.0,0.0452]
[1743699880433,0.244221,81893.0,81890.0,0.0452]
[1743699880675,0.244227,81891.0,81890.0,0.0452]
[1743699880855,0.244236,81888.0,81887.0,0.14472]
[1743699881197,0.244241,81886.0,81885.0,0.048]
[1743699881389,0.244241,81886.0,81878.0,0.24426]
[1743699881390,0.256468,81881.0,81880.0,0.14472]
[1743699881757,0.244262,81879.0,81878.0,0.0495]
[1743699882322,0.488383,81903.0,81878.0,0.0495]
[1743699882323,0.244226,81892.0,81885.0,0.012212]
[1743699882601,0.244213,81896.0,81894.0,0.0464]
[1743699882737,0.244213,81896.0,81889.0,0.012211]
[1743699882738,0.01221,81896.0,81886.0,0.14472]
[1743699882939,0.244239,81887.0,81886.0,0.14472]
[1743699883170,0.244265,81878.0,81877.0,0.14468]
[1743699883367,0.244255,81882.0,81877.0,0.156893]
[1743699883578,0.244255,81882.0,81878.0,0.244262]
[1743699883809,0.27966709,81900.0,81886.0,0.244241]
[1743699884008,0.244244,81886.0,81879.0,0.012213]
[1743699884219,0.244239,81887.0,81882.0,0.244253]
[1743699884579,0.244239,81887.0,81883.0,0.244248]
[1743699885009,0.244236,81888.0,81884.0,0.244247]
[1743699885214,0.244236,81888.0,81880.0,0.256471]
[1743699885215,0.29187709,81900.0,81885.0,0.0469]
[1743699885417,0.244225,81892.0,81889.0,0.244232]
[1743699885819,0.244239,81887.0,81885.0,0.291142]
[1743699886043,0.012211,81890.0,81877.0,0.14468]
[1743699886294,0.24426,81880.0,81877.0,0.14468]
[1743699886419,0.256484,81876.0,81869.0,0.0463]
[1743699886624,0.244307,81864.0,81863.0,0.0481]
[1743699887320,0.244305,81865.0,81863.0,0.0481]
[1743699887516,0.244307,81864.0,81863.0,0.0481]
[1743699887794,0.244304,81865.0,81863.0,0.0481]
[1743699887998,0.244304,81865.0,81857.0,0.10967503]
[1743699887999,0.256541,81858.0,81857.0,0.10967503]
[1743699888140,1.077021,81858.0,81857.0,0.10967503]
[1743699888481,0.385004,81858.0,81857.0,0.10967503]
[1743699888688,0.244325,81858.0,81857.0,0.10967503]
[1743699889088,0.256541,81858.0,81857.0,0.10967503]
[1743699889292,0.244325,81858.0,81857.0,0.10967503]
[1743699889524,0.244336,81855.0,81851.0,0.244344]
[1743699889891,0.244338,81854.0,81851.0,0.244344]
[1743699890395,0.27954877,81861.0,81845.0,0.244363]
[1743699890605,0.244353,81849.0,81846.0,0.24436]
[1743699891179,0.27954877,81861.0,81853.0,0.244339]
[1743699891476,0.244355,81848.0,81844.0,0.203338]
[1743699891682,0.244346,81851.0,81845.0,0.012218]
[1743699892051,0.244349,81850.0,81848.0,0.244355]
[1743699892255,0.244349,81850.0,81847.0,0.244358]
[1743699892460,0.244358,81847.0,81844.0,0.447702]
[1743699892622,0.244363,81846.0,81844.0,0.19112]
[1743699892826,0.244354,81849.0,81844.0,0.435486]
[1743699893037,0.244354,81849.0,81842.0,0.012218]
[1743699893038,0.012217,81850.0,81841.0,0.004]
[1743699893236,0.244373,81842.0,81841.0,0.004]
[1743699893441,0.244364,81845.0,81842.0,0.244371]
[1743699893686,0.244364,81845.0,81841.0,0.248376]
[1743699894130,0.244373,81842.0,81841.0,0.004]
[1743699895225,0.244356,81848.0,81843.0,0.012218]
[1743699895391,0.244356,81848.0,81842.0,0.244372]
[1743699895392,0.244361,81846.0,81842.0,0.244372]
[1743699895591,0.012217,81848.0,81841.0,0.004]
[1743699895837,0.244371,81843.0,81841.0,0.004]
[1743699896215,0.244358,81847.0,81841.0,0.004]
[1743699896409,0.24437,81843.0,81841.0,0.004]
[1743699896750,0.244361,81846.0,81843.0,0.256588]
[1743699897110,0.244358,81847.0,81844.0,0.244366]
[1743699897549,0.244358,81847.0,81843.0,0.256588]
[1743699897738,0.012216,81855.0,81843.0,0.256588]
[1743699897739,0.244323,81859.0,81852.0,0.012217]
[1743699897993,0.00011824,81864.0,81855.0,0.244328]
[1743699898150,0.244331,81856.0,81853.0,0.244339]
[1743699899333,0.244334,81855.0,81852.0,0.012217]
[1743699899560,0.244327,81858.0,81853.0,0.244339]
[1743699899964,0.244327,81858.0,81852.0,0.256559]
[1743699900400,0.244332,81856.0,81851.0,0.244346]
[1743699900745,0.244329,81857.0,81853.0,0.244339]
[1743699900961,0.244332,81856.0,81850.0,0.244346]
[1743699901167,0.012216,81854.0,81844.0,0.256585]
[1743699901401,0.27954877,81862.0,81853.0,0.24434]
[1743699901615,0.244325,81859.0,81854.0,0.0477]
[1743699901819,0.01233324,81864.0,81863.0,0.24431]
[1743699901820,0.00011824,81864.0,81863.0,0.24431]
[1743699902025,0.00011824,81864.0,81863.0,0.256525]
[1743699902226,0.00011824,81864.0,81863.0,0.42562797]
[1743699902427,0.00011824,81864.0,81863.0,0.302725]
[1743699902660,0.24442524,81864.0,81863.0,0.0462]
[1743699902862,0.012215,81862.0,81853.0,0.0494]
[1743699903036,0.244328,81858.0,81853.0,0.0494]
[1743699903194,0.244337,81854.0,81851.0,0.19166]
[1743699903397,0.256569,81849.0,81842.0,0.0469]
[1743699903621,0.244353,81849.0,81843.0,0.244367]
[1743699904003,0.244355,81849.0,81842.0,0.291272]
[1743699904200,0.244326,81858.0,81851.0,0.012217]
[1743699904519,0.27954877,81860.0,81849.0,0.012217]
[1743699904719,0.244332,81856.0,81850.0,0.0453]
[1743699904902,0.244324,81859.0,81852.0,0.012217]
[1743699904903,0.244323,81859.0,81852.0,0.012217]
[1743699905103,0.00011824,81864.0,81858.0,0.244323]
[1743699905303,0.00011824,81864.0,81854.0,0.244335]
[1743699905304,0.244317,81861.0,81854.0,0.244335]
[1743699906337,0.244326,81858.0,81850.0,0.0453]
[1743699906539,0.244319,81861.0,81854.0,0.244336]
[1743699907209,0.244313,81863.0,81856.0,0.244331]
[1743699907415,0.244314,81862.0,81856.0,0.244331]
[1743699907843,0.00011824,81864.0,81862.0,0.24431]
[1743699908047,0.00011824,81864.0,81860.0,0.244319]
[1743699908197,0.00011824,81864.0,81861.0,0.244316]
[1743699908916,0.00011824,81864.0,81863.0,0.012215]
[1743699909120,0.00011824,81864.0,81863.0,0.35636799]
[1743699909507,0.00011824,81864.0,81863.0,0.109615]
[1743699909651,0.00011824,81864.0,81840.0,0.005]
[1743699909652,0.244319,81861.0,81853.0,0.012217]
[1743699909875,0.00011824,81864.0,81863.0,0.24431]
[1743699910117,0.00011824,81864.0,81863.0,0.42722797]
[1743699910547,0.00011824,81864.0,81863.0,0.47682797]
[1743699910751,0.01221,81899.0,81888.0,0.012211]
[1743699910957,0.04035622,81911.0,81897.0,0.01221]
[1743699910958,0.012208,81907.0,81897.0,0.01221]
[1743699911149,0.244195,81902.0,81891.0,0.012211]
[1743699911370,0.244195,81902.0,81894.0,0.244217]
[1743699911519,0.012209,81905.0,81894.0,0.01221]
[1743699911755,0.24418,81907.0,81899.0,0.244202]
[1743699911951,0.29175677,81910.0,81895.0,0.01221]
[1743699911952,0.012209,81905.0,81895.0,0.01221]
[1743699912182,0.26884041,81910.0,81895.0,0.256424]
[1743699912362,0.244189,81904.0,81896.0,0.244211]
[1743699912777,0.244193,81903.0,81895.0,0.256424]
[1743699913175,0.244193,81903.0,81895.0,0.244214]
[1743699913378,0.244188,81905.0,81895.0,0.244214]
[1743699914022,0.244191,81904.0,81895.0,0.244214]
[1743699914412,0.244192,81903.0,81895.0,0.244214]
[1743699915474,0.244191,81904.0,81893.0,0.244219]
[1743699915803,0.244199,81901.0,81891.0,0.256435]
[1743699916009,0.012209,81902.0,81892.0,0.244221]
[1743699916249,0.244209,81898.0,81881.0,0.244254]
[1743699916450,0.244239,81887.0,81884.0,0.0496]
[1743699916662,0.012211,81892.0,81887.0,0.14472]
[1743699916663,0.012211,81889.0,81887.0,0.14472]
[1743699916831,0.244238,81888.0,81887.0,0.14472]
[1743699917029,0.012211,81891.0,81887.0,0.14472]
[1743699917030,0.244233,81889.0,81887.0,0.14472]
[1743699918215,0.244236,81888.0,81887.0,0.14472]
[1743699918486,0.244236,81888.0,81879.0,0.302373]
[1743699918487,0.012212,81884.0,81882.0,0.14472]
[1743699918647,0.012211,81888.0,81882.0,0.14472]
[1743699918648,0.244242,81886.0,81882.0,0.14472]
[1743699918874,0.1315,81913.0,81882.0,0.14472]
[1743699919112,0.012207,81915.0,81900.0,0.01221]
[1743699919318,0.04035622,81911.0,81908.0,0.244176]
[1743699919496,0.04035622,81911.0,81906.0,0.244182]
[1743699919784,0.04035622,81911.0,81906.0,0.24418]
[1743699919983,0.04035622,81911.0,81904.0,0.244187]
[1743699920205,0.244161,81914.0,81905.0,0.244184]
[1743699920547,0.244161,81914.0,81906.0,0.24418]
[1743699920750,0.244161,81914.0,81905.0,0.244184]
[1743699920999,0.012207,81917.0,81909.0,0.012208]
[1743699921000,0.01300119,81917.0,81909.0,0.012208]
[1743699921174,0.01300119,81917.0,81916.0,0.301659]
[1743699921175,0.00013852,81917.0,81916.0,0.301659]
[1743699921370,0.00013852,81917.0,81916.0,0.61464197]
[1743699922866,0.24406,81947.0,81918.0,0.256353]
[1743699923075,0.24406,81947.0,81918.0,0.37925597]
[1743699923288,0.012203,81944.0,81918.0,0.37925597]
[1743699923485,0.244072,81943.0,81918.0,0.37925597]
[1743699923777,0.01271703,81950.0,81918.0,0.39379682]
[1743699923995,0.244036,81955.0,81928.0,0.303421]
[1743699924224,0.004,81959.0,81928.0,0.48926482]
[1743699924439,0.004,81959.0,81931.0,0.27085285]
[1743699924635,0.004,81959.0,81931.0,0.53843582]
[1743699924839,0.244033,81956.0,81931.0,0.53843582]
[1743699925045,0.012201,81954.0,81931.0,0.52389497]
[1743699925309,0.244043,81953.0,81931.0,0.52389497]
[1743699925523,0.012203,81947.0,81931.0,0.26758297]
[1743699925725,0.244062,81947.0,81931.0,0.52389497]
[1743699926158,0.244065,81946.0,81931.0,0.52389497]
[1743699926384,0.012203,81947.0,81931.0,0.52389497]
[1743699926572,0.24408,81941.0,81931.0,0.26758297]
[1743699926764,0.24409,81937.0,81931.0,0.14468]
[1743699926966,0.24413,81924.0,81922.0,0.14464]
[1743699927202,0.24412,81927.0,81922.0,0.14464]
[1743699927376,0.244115,81929.0,81922.0,0.14464]
[1743699927579,0.24411,81930.0,81922.0,0.14464]
[1743699927777,0.24411,81931.0,81922.0,0.14464]
[1743699927988,0.244112,81930.0,81922.0,0.14464]
[1743699928393,0.244117,81928.0,81922.0,0.14464]
[1743699928550,0.244128,81924.0,81922.0,0.14464]
[1743699928762,0.012205,81928.0,81922.0,0.14464]
[1743699928965,0.244123,81926.0,81922.0,0.14464]
[1743699929187,0.244122,81927.0,81922.0,0.14464]
[1743699929453,0.244113,81929.0,81922.0,0.14464]
[1743699929454,0.244123,81926.0,81922.0,0.14464]
[1743699929600,0.445121,81925.0,81914.0,0.0475]
[1743699929779,0.27954877,81924.0,81914.0,0.0475]
[1743699930119,0.00268,81932.0,81914.0,0.0475]
[1743699930120,0.27954877,81930.0,81914.0,0.0475]
[1743699930326,0.18355,81929.0,81914.0,0.0475]
[1743699930534,0.18355,81929.0,81914.0,0.291658]
[1743699930677,0.27954877,81930.0,81916.0,0.244152]
[1743699930883,0.27954877,81930.0,81914.0,0.0475]
[1743699931084,0.27954877,81930.0,81920.0,0.24414]
[1743699931444,0.27954877,81930.0,81905.0,0.0452]
[1743699931445,0.37978714,81929.0,81902.0,0.0481]
[1743699931651,0.27954877,81912.0,81906.0,0.00013852]
[1743699932439,0.27954877,81912.0,81907.0,0.00676451]
[1743699932644,0.27954877,81912.0,81906.0,0.00013852]
[1743699934822,0.01275809,81914.0,81906.0,0.00013852]
[1743699934942,0.140331,81913.0,81906.0,0.00013852]
[1743699935496,0.126555,81919.0,81906.0,0.00013852]
[1743699935708,0.122892,81919.0,81906.0,0.00013852]
[1743699936559,0.12290297,81918.0,81906.0,0.00013852]
[1743699936767,0.917842,81917.0,81906.0,0.00013852]
[1743699936995,0.84396697,81916.0,81906.0,0.00013852]
[1743699937197,0.721064,81915.0,81906.0,0.00013852]
[1743699937405,0.22290297,81914.0,81906.0,0.00013852]
[1743699937554,0.0492,81912.0,81906.0,0.00013852]
[1743699937790,0.01454085,81909.0,81906.0,0.00013852]
[1743699937994,0.01454085,81907.0,81906.0,0.00013852]
[1743699938190,4.04184982,81907.0,81906.0,0.00013852]
[1743699938616,0.1,81899.0,81874.0,0.0477]
[1743699938846,0.27954877,81884.0,81874.0,0.04783831]
[1743699939246,0.198879,81883.0,81874.0,0.00013831]
[1743699939810,0.41927648,81884.0,81874.0,0.00013831]
[1743699940206,0.119655,81883.0,81874.0,0.00013831]
[1743699940466,0.41927648,81884.0,81874.0,0.00013831]
[1743699940642,0.197024,81883.0,81874.0,0.00013831]
[1743699941548,0.36365802,81884.0,81874.0,0.00013831]
[1743699941755,0.293635,81883.0,81874.0,0.00013831]
[1743699941955,0.36365802,81884.0,81874.0,0.00013831]
[1743699942161,0.430442,81883.0,81875.0,0.00716489]
[1743699942560,0.430442,81883.0,81874.0,0.00013831]
[1743699944899,0.400904,81883.0,81874.0,0.00013831]
[1743699945260,0.145267,81883.0,81874.0,0.00013831]
[1743699945462,1.17822297,81898.0,81874.0,0.00013831]
[1743699945659,0.680034,81897.0,81874.0,0.00013831]
[1743699945864,0.12290297,81896.0,81874.0,0.00013831]
[1743699946062,0.12290297,81896.0,81875.0,0.0455]
[1743699946284,1.05532,81898.0,81876.0,0.00244254]
[1743699946490,1.05532,81898.0,81877.0,0.26758297]
[1743699946706,0.41927648,81890.0,81878.0,0.0455]
[1743699946889,0.36161897,81889.0,81878.0,0.00758407]
[1743699947110,0.12290297,81889.0,81878.0,0.00758407]
[1743699947485,0.530764,81888.0,81874.0,0.00013831]
[1743699947686,0.23019731,81887.0,81874.0,0.00013831]
[1743699947894,2.140623,81886.0,81874.0,0.00013831]
[1743699948125,0.12290297,81885.0,81874.0,0.00013831]
[1743699948304,1.679255,81884.0,81874.0,0.00013831]
[1743699948477,0.12290297,81883.0,81874.0,0.00013831]
[1743699948682,1.02968597,81883.0,81874.0,0.00013831]
[1743699948883,0.675906,81882.0,81874.0,0.00013831]
[1743699949083,0.12031383,81881.0,81874.0,0.00013831]
[1743699949292,0.748635,81880.0,81874.0,0.00013831]
[1743699949532,0.12290297,81879.0,81874.0,0.00013831]
[1743699949735,0.163646,81878.0,81874.0,0.00013831]
[1743699949955,0.41927648,81890.0,81874.0,0.00013831]
[1743699950160,0.37750897,81889.0,81874.0,0.00013831]
[1743699950413,0.200504,81888.0,81874.0,0.00013831]
[1743699950581,0.138497,81888.0,81874.0,0.00013831]
[1743699950785,0.204662,81887.0,81874.0,0.00013831]
[1743699951024,0.41927648,81890.0,81874.0,0.00013831]
[1743699951168,0.41927648,81890.0,81875.0,0.0475]
[1743699952453,0.41927648,81890.0,81876.0,0.0476]
[1743699952698,0.41927648,81890.0,81876.0,0.05517691]
[1743699954135,0.16483062,81889.0,81876.0,0.05517691]
[1743699954353,1.12411762,81889.0,81876.0,0.05517691]
[1743699954582,1.076151,81888.0,81876.0,0.0476]
[1743699954778,0.12290297,81887.0,81876.0,0.0476]
[1743699955102,0.23337155,81890.0,81876.0,0.0476]
[1743699955319,0.25228497,81889.0,81876.0,0.0476]
[1743699955644,1.05532,81898.0,81876.0,0.0476]
[1743699955867,0.41927648,81890.0,81876.0,0.0476]
[1743699956073,0.548091,81889.0,81877.0,0.00757977]
[1743699956283,0.438133,81889.0,81877.0,0.00757977]
[1743699956587,0.438133,81889.0,81876.0,0.0476]
[1743699956828,0.41927648,81890.0,81876.0,0.0476]
[1743699957006,0.41927648,81890.0,81877.0,0.0075411]
[1743699957199,0.12290297,81897.0,81877.0,0.0075411]
[1743699957421,0.41927648,81890.0,81876.0,0.0476]
[1743699957580,0.428828,81889.0,81876.0,0.0476]
[1743699957780,0.339024,81889.0,81876.0,0.0476]
[1743699958011,0.41927648,81890.0,81876.0,0.0476]
[1743699958230,0.201168,81889.0,81876.0,0.0476]
[1743699958405,0.12290297,81888.0,81877.0,0.0075411]
[1743699958663,0.12290297,81888.0,81876.0,0.0476]
[1743699958664,0.800424,81887.0,81876.0,0.0476]
[1743699958840,0.672514,81887.0,81876.0,0.0476]
[1743699959795,0.600101,81887.0,81876.0,0.0476]
[1743699959920,0.41927648,81890.0,81876.0,0.0476]
[1743699960124,0.252014,81889.0,81876.0,0.0476]
[1743699960345,0.12290297,81888.0,81877.0,0.00752195]
[1743699960665,0.12290297,81888.0,81876.0,0.0476]
[1743699960869,0.829676,81887.0,81876.0,0.0476]
[1743699961027,0.87067897,81886.0,81876.0,0.0476]
[1743699961221,0.847776,81885.0,81876.0,0.0476]
[1743699961520,0.12290297,81886.0,81876.0,0.0476]
[1743699961790,0.920636,81885.0,81874.0,0.00013831]
[1743699962018,0.27947688,81884.0,81874.0,0.00013831]
[1743699962395,1.538811,81883.0,81874.0,0.00013831]
[1743699962611,0.130081,81882.0,81874.0,0.00013831]
[1743699962923,0.328233,81883.0,81874.0,0.00013831]
[1743699963193,0.317276,81885.0,81874.0,0.00013831]
[1743699963855,0.240936,81884.0,81874.0,0.00013831]
[1743699964069,0.236025,81885.0,81874.0,0.00013831]
[1743699964479,0.12290297,81884.0,81874.0,0.00013831]
[1743699964684,0.250504,81883.0,81874.0,0.00013831]
[1743699964893,0.37340697,81883.0,81874.0,0.00013831]
[1743699965025,0.126993,81882.0,81874.0,0.00013831]
[1743699966260,0.12290297,81883.0,81874.0,0.00013831]
[1743699966700,0.277575,81882.0,81874.0,0.00013831]
[1743699967256,0.173393,81882.0,81874.0,0.00013831]
[1743699968239,0.2639,81881.0,81874.0,0.00013831]
[1743699968432,0.2639,81882.0,81874.0,0.00013831]
[1743699968645,0.27947688,81890.0,81874.0,0.00013831]
[1743699968796,0.12290297,81889.0,81874.0,0.00013831]
[1743699968997,0.357709,81888.0,81874.0,0.00013831]
[1743699969227,0.48356397,81887.0,81874.0,0.00013831]
[1743699969425,0.376896,81886.0,81874.0,0.00013831]
[1743699969627,0.49979897,81886.0,81874.0,0.00013831]
[1743699969863,0.107727,81885.0,81874.0,0.00013831]
[1743699970014,0.12290297,81886.0,81874.0,0.00013831]
[1743699970220,0.107727,81885.0,81874.0,0.00013831]
[1743699970855,0.12290297,81886.0,81874.0,0.00013831]
[1743699971055,0.107727,81885.0,81874.0,0.00013831]
[1743699971258,1.33511688,81900.0,81875.0,0.0497]
[1743699971455,0.01454085,81889.0,81874.0,0.00013831]
[1743699971665,2.11655897,81888.0,81874.0,0.00013831]
[1743699971901,1.787807,81887.0,81874.0,0.00013831]
[1743699972083,0.12290297,81886.0,81874.0,0.00013831]
[1743699972475,0.414869,81885.0,81874.0,0.00013831]
[1743699972735,0.12290297,81884.0,81874.0,0.00013831]
[1743699972940,0.129363,81883.0,81874.0,0.00013831]
[1743699973113,0.1685,81883.0,81874.0,0.00013831]
[1743699973341,0.12290297,81884.0,81874.0,0.00013831]
[1743699973763,0.12289768,81898.0,81874.0,0.00013831]
[1743699973975,0.80015297,81897.0,81875.0,0.0076052]
[1743699974174,0.91847468,81896.0,81876.0,0.0459]
[1743699974325,0.55038997,81895.0,81876.0,0.0459]
[1743699974679,0.27947688,81890.0,81876.0,0.0459]
[1743699974884,0.40237985,81890.0,81876.0,0.0459]
[1743699975862,0.27947688,81890.0,81876.0,0.0459]
[1743699976068,0.00914474,81899.0,81878.0,0.0491]
[1743699976350,1.05564,81900.0,81880.0,0.0491]
[1743699976513,1.05564,81900.0,81880.0,0.17200297]
[1743699976721,1.05564,81900.0,81882.0,0.0475]
[1743699976911,1.05564,81900.0,81884.0,0.0475]
[1743699977709,1.05564,81900.0,81885.0,0.00745517]
[1743699978106,1.05564,81900.0,81886.0,0.0476]
[1743699978308,0.27947688,81910.0,81886.0,0.0476]
[1743699978449,0.44663497,81909.0,81887.0,0.00745517]
[1743699978650,0.254632,81908.0,81886.0,0.0476]
[1743699978853,0.12290297,81907.0,81888.0,0.00745517]
[1743699979111,0.28657897,81907.0,81886.0,0.0476]
[1743699979454,0.28657897,81907.0,81883.0,0.14712222]
[1743699979455,0.28848329,81920.0,81889.0,0.0457]
[1743699979627,0.15302073,81916.0,81891.0,0.0457]
[1743699980159,0.01267112,81917.0,81893.0,0.0467]
[1743699980364,0.12290297,81923.0,81896.0,0.0983]
[1743699980567,0.27947688,81930.0,81901.0,0.0486]
[1743699980758,0.27947688,81930.0,81903.0,0.0486]
[1743699980975,0.01295748,81924.0,81903.0,0.17150297]
[1743699981174,0.27947688,81920.0,81904.0,0.00736881]
[1743699981677,0.27961525,81920.0,81904.0,0.00736881]
[1743699982316,0.00013837,81920.0,81904.0,0.00736881]
[1743699982514,0.00013837,81920.0,81905.0,0.04784167]
[1743699982716,0.00013837,81920.0,81906.0,0.0476]
[1743699983078,0.00013837,81920.0,81907.0,0.00736881]
[1743699985804,0.27961525,81920.0,81907.0,0.00736881]
[1743699986413,0.693118,81919.0,81907.0,0.00736881]
[1743699986609,0.626139,81919.0,81906.0,0.0476]
[1743699986816,2.164023,81919.0,81906.0,0.0476]
[1743699987128,1.31328965,81918.0,81905.0,0.0454]
[1743699987330,3.091766,81917.0,81900.0,0.0496]
[1743699987530,0.27947688,81910.0,81900.0,0.0496]
[1743699987764,0.49202497,81909.0,81900.0,0.0496]
[1743699988057,0.375652,81908.0,81893.0,0.0963]
[1743699988212,0.375652,81908.0,81901.0,0.00736881]
[1743699988213,0.12290297,81907.0,81901.0,0.00736881]
[1743699988414,0.27961525,81920.0,81902.0,0.0498]
[1743699988856,0.228823,81919.0,81902.0,0.0498]
[1743699989080,0.228823,81919.0,81903.0,0.00736881]
[1743699990210,0.00899391,81919.0,81903.0,0.00736881]
[1743699990511,0.27947688,81913.0,81903.0,0.00736881]
[1743699990738,0.387256,81912.0,81902.0,0.0498]
[1743699990961,0.51015897,81912.0,81894.0,0.0477]
[1743699991163,0.27947688,81903.0,81894.0,0.0477]
[1743699991525,0.27947688,81910.0,81894.0,0.0477]
[1743699991697,0.78926897,81909.0,81894.0,0.0477]
[1743699991902,0.465578,81908.0,81894.0,0.0477]
[1743699992107,0.12290297,81907.0,81894.0,0.0477]
[1743699992328,0.51142197,81907.0,81894.0,0.0477]
[1743699992512,0.27947688,81910.0,81894.0,0.0477]
[1743699992726,0.1,81918.0,81894.0,0.0477]
[1743699992903,0.22339097,81917.0,81894.0,0.0477]
[1743699993107,0.129173,81916.0,81894.0,0.0477]
[1743699993333,0.12290297,81915.0,81894.0,0.0477]
[1743699993531,0.27947688,81910.0,81894.0,0.0477]
[1743699994254,0.0092999,81919.0,81894.0,0.17060297]
[1743699994426,0.0092999,81919.0,81895.0,0.18155136]
[1743699994633,0.0092999,81919.0,81897.0,0.0459]
[1743699994795,0.0092999,81919.0,81898.0,0.12290297]
[1743699995004,0.27961525,81920.0,81899.0,0.05310639]
[1743699995240,0.00013837,81920.0,81901.0,0.0949]
[1743699995574,0.00013837,81920.0,81903.0,0.047]
[1743699995744,0.00013837,81920.0,81904.0,0.00244159]
[1743699996157,0.00013837,81920.0,81905.0,0.00720639]
[1743699998785,0.149847,81919.0,81905.0,0.00724639]
[1743699999711,0.00013837,81920.0,81905.0,0.00724639]
[1743700000135,0.00013837,81920.0,81907.0,0.0479]
[1743700000339,0.00013837,81920.0,81909.0,0.0497]
[1743700000556,0.00013837,81920.0,81908.0,0.16960297]
[1743700000557,0.00268,81932.0,81911.0,0.0964]
[1743700000753,0.00268,81932.0,81913.0,0.0964]
[1743700001034,0.00268,81932.0,81915.0,0.0964]
[1743700001250,0.00268,81932.0,81917.0,0.0964]
[1743700001451,0.00268,81932.0,81919.0,0.0965]
[1743700001655,0.00268,81932.0,81921.0,0.0965]
[1743700001857,0.00268,81932.0,81923.0,0.0495]
[1743700002081,0.00268,81932.0,81924.0,0.12290297]
[1743700002286,0.00268,81932.0,81926.0,0.047]
[1743700002492,0.00268,81932.0,81927.0,0.12984646]
[1743700002711,0.00268,81932.0,81928.0,0.05234075]
[1743700002909,0.00268,81932.0,81929.0,0.12290297]
[1743700003025,0.00268,81932.0,81930.0,0.05886865]
[1743700003388,0.00268,81932.0,81931.0,0.36320297]
[1743700003524,0.84180072,81968.0,81932.0,0.0499]
[1743700003733,0.38297797,81967.0,81934.0,0.0499]
[1743700003932,0.32436,81966.0,81935.0,0.17280297]
[1743700004136,0.12290297,81965.0,81935.0,0.17280297]
[1743700004341,0.12290297,81965.0,81937.0,0.0947]
[1743700004590,0.12290297,81965.0,81938.0,0.12290297]
[1743700004800,0.27947688,81960.0,81937.0,0.0947]
[1743700004998,0.27947688,81950.0,81937.0,0.0947]
[1743700005171,0.488968,81949.0,81938.0,0.00652794]
[1743700005499,0.12290297,81948.0,81937.0,0.0479]
[1743700005701,0.437649,81947.0,81937.0,0.0479]
[1743700005949,0.12290297,81946.0,81937.0,0.0479]
[1743700006158,0.343993,81945.0,81937.0,0.0479]
[1743700006662,0.12290297,81944.0,81937.0,0.0479]
[1743700006824,0.737041,81943.0,81931.0,0.0468]
[1743700007030,0.27947688,81941.0,81931.0,0.0468]
[1743700007188,0.279021,81940.0,81931.0,0.0468]
[1743700007418,0.12290297,81939.0,81937.0,4e-05]
[1743700007616,0.942207,81938.0,81937.0,4e-05]
[1743700007952,0.28921197,81938.0,81937.0,4e-05]
[1743700010265,0.32813317,81938.0,81937.0,4e-05]
[1743700010477,0.32913317,81938.0,81937.0,4e-05]
[1743700010886,0.32813317,81938.0,81937.0,4e-05]
[1743700011064,0.32913317,81938.0,81937.0,4e-05]
[1743700011264,0.29121197,81938.0,81937.0,4e-05]
[1743700012988,0.149715,81938.0,81937.0,4e-05]
[1743700013190,0.002,81938.0,81937.0,4e-05]
[1743700014183,0.002,81938.0,81937.0,0.04614]
[1743700014515,0.002,81938.0,81937.0,0.09821963]
[1743700014732,0.002,81938.0,81937.0,0.2211226]
[1743700014952,0.01279336,81960.0,81938.0,0.0497]
[1743700015124,0.01279336,81960.0,81940.0,0.0497]
[1743700015361,0.00900958,81966.0,81940.0,0.1750434]
[1743700015559,0.00900958,81966.0,81942.0,0.0459]
[1743700015760,0.00900958,81966.0,81943.0,0.00244043]
[1743700016139,0.00900958,81966.0,81944.0,0.00557963]
[1743700016343,0.01277196,81961.0,81944.0,0.00557963]
[1743700016542,0.01277196,81961.0,81943.0,0.00244043]
[1743700016724,0.01277196,81961.0,81945.0,0.00557963]
[1743700016926,0.01277196,81961.0,81946.0,0.00244043]